bitfinex/quotes_BTCUSD_20220204
["timestamp","ask_amount","ask_price","bid_price","bid_amount"]
[1643938376975,0.65883361,37167.0,37166.0,0.01020437]
[1643938377177,0.65883361,37167.0,37166.0,0.56020437]
[1643938377375,0.30620861,37167.0,37166.0,0.56020437]
[1643938377575,0.30620861,37167.0,37166.0,0.01020437]
[1643938379130,0.35620861,37167.0,37166.0,0.01020437]
[1643938379526,0.70883361,37167.0,37166.0,0.01020437]
[1643938379728,0.93247434,37167.0,37166.0,0.01020437]
[1643938385076,0.48847872,37167.0,37166.0,0.56020437]
[1643938385676,0.48847872,37167.0,37166.0,0.01020437]
[1643938386927,0.6,37166.0,37165.0,0.00175871]
[1643938387125,0.952625,37166.0,37165.0,0.00196309]
[1643938387327,1.17357668,37166.0,37165.0,0.00196309]
[1643938387726,1.17357668,37166.0,37165.0,0.00120438]
[1643938388329,1.17357668,37166.0,37161.0,0.0122346]
[1643938388330,0.20646278,37164.0,37161.0,0.0122346]
[1643938388528,0.067304,37163.0,37160.0,0.44929856]
[1643938388729,0.08585372,37162.0,37160.0,0.44929856]
[1643938389129,0.13585372,37162.0,37160.0,0.44929856]
[1643938389329,0.50704475,37162.0,37160.0,0.43934499]
[1643938389528,0.03585372,37161.0,37160.0,0.43934499]
[1643938389728,0.03585372,37161.0,37160.0,0.421]
[1643938389980,0.80773724,37162.0,37160.0,0.421]
[1643938390280,0.03585372,37161.0,37160.0,0.421]
[1643938392482,0.69359096,37162.0,37160.0,0.421]
[1643938392683,0.13585372,37162.0,37161.0,0.56414628]
[1643938392882,0.1,37162.0,37161.0,0.56414628]
[1643938394129,0.1,37162.0,37161.0,0.61794628]
[1643938396030,0.1,37162.0,37161.0,0.84870294]
[1643938396230,0.1346074,37163.0,37161.0,0.61794628]
[1643938396432,0.1346074,37163.0,37162.0,0.23088061]
[1643938396630,0.1346074,37163.0,37162.0,0.28468061]
[1643938396829,0.1346074,37163.0,37162.0,0.23088061]
[1643938397031,0.1346074,37163.0,37161.0,0.8524833]
[1643938397233,0.1346074,37163.0,37162.0,0.0538]
[1643938397477,0.02020393,37163.0,37162.0,0.0538]
[1643938398175,0.02020393,37163.0,37162.0,0.28468287]
[1643938398176,0.07020393,37163.0,37162.0,0.28468287]
[1643938400181,0.07020393,37163.0,37162.0,0.23088287]
[1643938400381,0.07020393,37163.0,37161.0,0.56490445]
[1643938400382,0.13749993,37163.0,37161.0,0.79578732]
[1643938400984,0.03585372,37162.0,37161.0,0.79502915]
[1643938401227,0.13749993,37163.0,37161.0,0.79502915]
[1643938402727,0.17335365,37163.0,37161.0,0.79502915]
[1643938402927,0.17335365,37163.0,37161.0,0.79523355]
[1643938404331,0.17335365,37163.0,37162.0,1.58088287]
[1643938404532,0.17335365,37163.0,37162.0,1.58108727]
[1643938405577,0.17335365,37163.0,37162.0,0.23108727]
[1643938406281,0.13749993,37163.0,37162.0,0.23108727]
[1643938406880,0.17335365,37163.0,37162.0,0.23108727]
[1643938407680,0.17280544,37163.0,37162.0,1.43108727]
[1643938408081,0.13695172,37163.0,37162.0,1.43108727]
[1643938408281,0.17280544,37163.0,37162.0,1.43108727]
[1643938408927,0.13695172,37163.0,37162.0,1.43108727]
[1643938409124,0.17280544,37163.0,37162.0,1.43108727]
[1643938409825,0.13695172,37163.0,37162.0,1.43108727]
[1643938410024,0.17280544,37163.0,37162.0,1.43108727]
[1643938410226,0.17280544,37163.0,37162.0,0.23108727]
[1643938410426,0.13695172,37163.0,37162.0,0.23108727]
[1643938411234,0.17280544,37163.0,37162.0,1.1002044]
[1643938411633,0.10605765,37163.0,37162.0,1.1002044]
[1643938415687,0.10605765,37163.0,37162.0,0.0002044]
[1643938415886,0.10605765,37163.0,37162.0,0.23099167]
[1643938416331,0.10605765,37163.0,37162.0,0.23119607]
[1643938416831,0.10605765,37163.0,37162.0,0.98119607]
[1643938417231,0.10605765,37163.0,37162.0,0.7502044]
[1643938417232,0.07020393,37163.0,37162.0,0.7502044]
[1643938417433,0.10605765,37163.0,37162.0,0.7502044]
[1643938417631,0.07020393,37163.0,37162.0,0.7502044]
[1643938418637,0.00435168,37163.0,37162.0,1.05164617]
[1643938418833,0.00435168,37165.0,37162.0,0.79585272]
[1643938419033,0.00435168,37165.0,37164.0,0.94564832]
[1643938419434,0.07163849,37165.0,37164.0,0.9002044]
[1643938419634,0.20624649,37165.0,37164.0,0.94585272]
[1643938419892,0.20624649,37165.0,37164.0,1.59585272]
[1643938420088,0.30624649,37165.0,37164.0,1.82684011]
[1643938420488,0.1,37165.0,37164.0,1.91031011]
[1643938420687,0.067287,37166.0,37164.0,1.67932272]
[1643938420889,0.07163868,37166.0,37165.0,1.63097629]
[1643938421091,0.067275,37168.0,37166.0,0.067276]
[1643938421289,0.067275,37168.0,37167.0,0.09944832]
[1643938422092,0.062275,37168.0,37167.0,0.09944832]
[1643938424632,0.112275,37168.0,37167.0,0.09944832]
[1643938424838,0.32487531,37168.0,37164.0,0.23097629]
[1643938425033,0.32487531,37168.0,37163.0,0.020227]
[1643938425034,0.00435168,37165.0,37163.0,0.25120329]
[1643938425232,0.10435168,37165.0,37163.0,0.25120329]
[1643938425433,0.17164668,37165.0,37163.0,0.25120329]
[1643938425633,0.23894178,37165.0,37163.0,0.25120329]
[1643938425834,0.23894178,37165.0,37163.0,0.020227]
[1643938426034,0.21056481,37164.0,37163.0,0.0002044]
[1643938426234,0.21056481,37164.0,37161.0,0.23118069]
[1643938426433,0.21056481,37164.0,37162.0,0.00075816]
[1643938426434,0.067297,37163.0,37162.0,0.00075816]
[1643938426634,0.067297,37163.0,37162.0,0.00096256]
[1643938427043,0.13459313,37163.0,37162.0,0.00096256]
[1643938427237,0.23894481,37163.0,37162.0,0.00096256]
[1643938427488,0.23894481,37163.0,37162.0,0.0002044]
[1643938427686,0.05,37162.0,37161.0,0.23193886]
[1643938428688,0.05,37162.0,37161.0,0.23118069]
[1643938431627,0.05,37162.0,37161.0,1.28118069]
[1643938432230,0.05,37162.0,37161.0,1.33854142]
[1643938432432,0.05,37162.0,37161.0,1.0502044]
[1643938432729,0.05,37162.0,37161.0,1.33854142]
[1643938432931,0.05435168,37162.0,37161.0,1.0502044]
[1643938433129,0.05,37162.0,37161.0,1.1040044]
[1643938433529,0.05,37162.0,37161.0,1.39234142]
[1643938433929,0.05435168,37162.0,37161.0,1.39234142]
[1643938434129,0.05,37162.0,37161.0,1.39234142]
[1643938434994,0.01383223,37162.0,37161.0,1.39234142]
[1643938435287,0.067297,37163.0,37161.0,1.45962042]
[1643938435489,0.067297,37163.0,37162.0,0.28403011]
[1643938435686,0.067297,37163.0,37162.0,0.28423451]
[1643938436288,0.067297,37163.0,37162.0,0.04585272]
[1643938436487,0.067297,37163.0,37162.0,0.26904598]
[1643938436689,0.067297,37163.0,37162.0,0.04585272]
[1643938437090,0.117297,37163.0,37162.0,0.04585272]
[1643938437689,0.117297,37163.0,37162.0,0.27684334]
[1643938437888,0.117297,37163.0,37162.0,0.27685156]
[1643938438288,0.117297,37163.0,37162.0,0.04585272]
[1643938439731,0.117297,37163.0,37162.0,0.27685391]
[1643938445887,0.117297,37163.0,37162.0,0.27664951]
[1643938446733,0.11592716,37163.0,37162.0,0.27664951]
[1643938448734,0.16968918,37165.0,37163.0,1.1]
[1643938449435,0.06728833,37164.0,37163.0,1.1]
[1643938450083,0.27884962,37164.0,37162.0,0.28175878]
[1643938450283,0.20717712,37163.0,37162.0,0.05]
[1643938450487,0.20717712,37163.0,37162.0,0.00075816]
[1643938450684,0.067295,37163.0,37162.0,0.00075816]
[1643938451483,0.067295,37163.0,37161.0,0.0002044]
[1643938451684,0.05,37162.0,37161.0,0.00075817]
[1643938451983,0.05,37162.0,37161.0,0.00096257]
[1643938452286,0.11729437,37162.0,37161.0,0.00096257]
[1643938452684,0.11729437,37162.0,37161.0,0.0002044]
[1643938452883,0.25188637,37162.0,37160.0,0.7029632]
[1643938453087,0.24515925,37162.0,37160.0,0.6529632]
[1643938453285,0.44959024,37162.0,37160.0,0.6529632]
[1643938453837,0.44959024,37162.0,37160.0,0.65220502]
[1643938454541,0.20575998,37161.0,37160.0,0.4212044]
[1643938454739,0.55838498,37161.0,37160.0,0.4212044]
[1643938455537,0.20575998,37161.0,37160.0,0.4212044]
[1643938455742,0.55791966,37161.0,37160.0,0.4212044]
[1643938455937,0.20529466,37161.0,37160.0,0.4212044]
[1643938456139,0.55791966,37161.0,37160.0,0.4212044]
[1643938456338,0.20529466,37161.0,37160.0,0.4212044]
[1643938456539,0.43645665,37161.0,37160.0,0.4212044]
[1643938456740,0.08382865,37161.0,37160.0,0.4212044]
[1643938457394,0.352628,37161.0,37160.0,0.4212044]
[1643938458184,0.452628,37161.0,37160.0,0.4212044]
[1643938458388,0.1,37161.0,37160.0,0.4212044]
[1643938458986,0.1,37161.0,37160.0,0.7738324]
[1643938459486,0.1,37161.0,37160.0,0.4212044]
[1643938459686,0.1,37161.0,37160.0,0.7738324]
[1643938459986,0.1,37161.0,37160.0,0.4212044]
[1643938461436,0.13458422,37162.0,37160.0,0.4212044]
[1643938461638,0.067296,37162.0,37161.0,0.352628]
[1643938461836,0.067296,37162.0,37161.0,0.3528324]
[1643938462939,0.117296,37162.0,37161.0,0.3528324]
[1643938463140,0.167296,37162.0,37161.0,0.3528324]
[1643938463342,0.167296,37162.0,37161.0,0.0002044]
[1643938463544,0.167296,37162.0,37160.0,0.9084034]
[1643938463740,0.167296,37162.0,37160.0,0.90916158]
[1643938464145,0.234587,37162.0,37160.0,0.90916158]
[1643938464342,0.30187966,37162.0,37160.0,0.90916158]
[1643938464743,0.30187966,37162.0,37160.0,0.9084034]
[1643938465386,0.167296,37162.0,37160.0,0.9084034]
[1643938465586,0.167296,37162.0,37161.0,0.352628]
[1643938465784,0.167296,37162.0,37161.0,0.0002044]
[1643938466187,0.167296,37162.0,37160.0,0.90916158]
[1643938466785,0.117296,37162.0,37160.0,1.20559623]
[1643938466989,0.167296,37162.0,37160.0,1.20483805]
[1643938467186,0.23458668,37162.0,37160.0,1.20483805]
[1643938467386,0.23458668,37162.0,37160.0,1.20483722]
[1643938469148,0.23458668,37162.0,37160.0,0.90840257]
[1643938469349,0.30187768,37162.0,37160.0,0.77383157]
[1643938470352,0.30187768,37162.0,37160.0,0.84112357]
[1643938472686,0.18458668,37162.0,37160.0,0.48849557]
[1643938472891,0.167296,37162.0,37160.0,0.71949619]
[1643938473088,0.167296,37162.0,37161.0,0.352628]
[1643938473288,0.167296,37162.0,37161.0,0.35283157]
[1643938473888,0.117296,37162.0,37161.0,0.35283157]
[1643938474888,0.167296,37162.0,37161.0,0.00020357]
[1643938475088,0.167296,37162.0,37160.0,1.07288237]
[1643938475490,0.05,37162.0,37161.0,0.402628]
[1643938475692,0.05,37162.0,37161.0,0.40283157]
[1643938476536,0.05,37162.0,37161.0,0.45663157]
[1643938477138,0.134563,37168.0,37161.0,0.45663157]
[1643938477338,0.134563,37168.0,37167.0,0.05]
[1643938477539,0.134563,37168.0,37166.0,0.067281]
[1643938478339,0.20184384,37168.0,37166.0,0.067281]
[1643938478739,0.05,37167.0,37164.0,0.09237384]
[1643938479139,1.05,37165.0,37164.0,0.09237384]
[1643938479345,1.05,37165.0,37161.0,0.05400357]
[1643938479346,0.352628,37164.0,37162.0,0.00075818]
[1643938479642,0.55,37163.0,37162.0,0.00075818]
[1643938479895,0.6,37163.0,37162.0,0.00075818]
[1643938480287,0.6,37163.0,37161.0,0.00020357]
[1643938480487,0.6,37163.0,37161.0,0.00075817]
[1643938480690,0.667292,37163.0,37161.0,0.00075817]
[1643938480888,0.05,37162.0,37161.0,0.00096174]
[1643938481487,0.05,37162.0,37161.0,0.00020357]
[1643938481688,0.11729253,37162.0,37160.0,0.72022451]
[1643938481891,0.11729253,37162.0,37160.0,0.48925175]
[1643938482591,0.31917653,37162.0,37160.0,0.65217633]
[1643938482789,0.31917653,37162.0,37160.0,0.42120357]
[1643938482992,0.36917653,37162.0,37160.0,0.42120357]
[1643938483192,0.05,37161.0,37160.0,0.42120357]
[1643938484032,0.04969331,37161.0,37160.0,0.92120357]
[1643938484232,0.04969331,37161.0,37160.0,1.27383157]
[1643938484435,0.04969331,37161.0,37160.0,0.77383157]
[1643938485033,0.95232131,37161.0,37160.0,0.42120357]
[1643938485636,1.22748365,37161.0,37160.0,0.42120357]
[1643938486035,0.67748365,37161.0,37160.0,0.42120357]
[1643938486235,1.17748365,37161.0,37160.0,0.42120357]
[1643938486437,1.40839355,37161.0,37160.0,0.42120357]
[1643938487042,1.17748365,37161.0,37160.0,0.42120357]
[1643938489989,1.62748365,37161.0,37160.0,0.42120357]
[1643938490187,1.85839355,37161.0,37160.0,0.42120357]
[1643938491136,1.40839355,37161.0,37160.0,0.42120357]
[1643938491736,1.50839355,37161.0,37160.0,0.42120357]
[1643938493339,2.0,37160.0,37159.0,0.00375756]
[1643938493539,2.352628,37160.0,37159.0,0.003]
[1643938493740,2.402628,37160.0,37159.0,0.00375756]
[1643938493940,2.902628,37160.0,37159.0,0.00375756]
[1643938494140,2.002628,37160.0,37159.0,0.00375756]
[1643938494743,2.002628,37160.0,37159.0,0.003]
[1643938494996,2.102628,37160.0,37159.0,0.003]
[1643938495793,2.33336346,37160.0,37159.0,0.003]
[1643938498196,1.002628,37160.0,37159.0,0.003]
[1643938498842,1.752628,37160.0,37159.0,0.003]
[1643938499044,1.98336346,37160.0,37159.0,0.003]
[1643938499243,1.28336346,37160.0,37159.0,0.003]
[1643938499445,0.952628,37160.0,37159.0,0.003]
[1643938499643,1.052628,37160.0,37159.0,0.003]
[1643938501852,2.73336346,37160.0,37159.0,0.003]
[1643938504105,1.28336346,37160.0,37159.0,0.003]
[1643938504505,1.052628,37160.0,37159.0,0.003]
[1643938505006,2.28336346,37160.0,37159.0,0.003]
[1643938505410,2.18336346,37160.0,37159.0,0.003]
[1643938505807,1.952628,37160.0,37159.0,0.003]
[1643938507336,0.952628,37160.0,37159.0,0.003]
[1643938508633,0.952628,37160.0,37156.0,0.014]
[1643938508835,0.352628,37157.0,37156.0,0.0002025]
[1643938509037,0.90232131,37157.0,37156.0,0.0002025]
[1643938509237,0.352628,37155.0,37154.0,0.00099064]
[1643938509434,0.04969331,37155.0,37154.0,0.00099064]
[1643938510093,0.46962653,37155.0,37154.0,0.00099064]
[1643938514136,0.46962653,37155.0,37154.0,0.0002025]
[1643938514336,0.46962653,37155.0,37153.0,0.0059602]
[1643938515137,0.46962653,37155.0,37153.0,0.0052025]
[1643938516538,0.71662422,37155.0,37153.0,0.0052025]
[1643938517785,0.92098871,37155.0,37153.0,0.0052025]
[1643938518187,1.2572985,37154.0,37153.0,0.0052025]
[1643938519185,0.2072985,37154.0,37153.0,0.0052025]
[1643938519587,0.7572985,37154.0,37153.0,0.0052025]
[1643938519786,0.2072985,37154.0,37153.0,0.0052025]
[1643938521634,0.81662422,37155.0,37153.0,0.0052025]
[1643938522232,1.0224007,37155.0,37153.0,0.0052025]
[1643938523633,0.56962653,37155.0,37153.0,0.0052025]
[1643938524436,0.21699853,37155.0,37153.0,0.0052025]
[1643938524738,0.21699853,37155.0,37153.0,0.0725065]
[1643938524988,0.21699853,37155.0,37153.0,0.0052025]
[1643938525993,0.56962653,37155.0,37153.0,0.0052025]
[1643938526189,0.21699853,37155.0,37153.0,0.0052025]
[1643938527790,0.16730522,37155.0,37153.0,0.0052025]
[1643938527991,1.04969331,37154.0,37153.0,0.0052025]
[1643938528501,2.14969331,37154.0,37153.0,0.0052025]
[1643938529442,2.29969331,37154.0,37153.0,0.0022025]
[1643938529638,2.99095868,37154.0,37153.0,0.0022025]
[1643938529838,3.49095868,37154.0,37153.0,0.0022025]
[1643938530339,3.49095868,37154.0,37153.0,0.00211111]
[1643938530540,3.20232131,37154.0,37153.0,0.00211111]
[1643938530739,3.5482296,37154.0,37153.0,0.00097369]
[1643938530940,2.1,37153.0,37152.0,0.02073215]
[1643938531143,2.519962,37153.0,37152.0,0.02093467]
[1643938531342,2.90833742,37153.0,37152.0,0.02093467]
[1643938531741,1.65833742,37153.0,37152.0,0.02093467]
[1643938531940,1.65833742,37153.0,37152.0,0.02017764]
[1643938532406,1.302628,37153.0,37152.0,0.02017764]
[1643938533286,1.59100342,37153.0,37152.0,0.02017764]
[1643938533487,2.652628,37153.0,37152.0,0.02017764]
[1643938533690,2.94096747,37153.0,37152.0,0.02017764]
[1643938533886,2.94096747,37153.0,37152.0,0.01997512]
[1643938534888,2.706428,37153.0,37152.0,0.01997512]
[1643938535289,2.9947256,37153.0,37152.0,0.01997512]
[1643938535689,2.706428,37153.0,37152.0,0.01997512]
[1643938535887,1.350558,37153.0,37152.0,0.01997512]
[1643938536137,1.344688,37153.0,37152.0,0.01997512]
[1643938536638,1.844688,37153.0,37151.0,0.01]
[1643938536838,3.68818186,37152.0,37151.0,0.01075704]
[1643938537040,3.89167517,37152.0,37151.0,0.01075704]
[1643938537240,1.1,37151.0,37147.0,0.01907944]
[1643938537442,1.49969331,37148.0,37147.0,0.01907944]
[1643938537639,2.12006422,37148.0,37147.0,0.01907944]
[1643938537840,2.56465957,37148.0,37147.0,0.01907944]
[1643938538742,0.067337,37146.0,37142.0,0.75218185]
[1643938538946,0.419965,37145.0,37142.0,0.72330533]
[1643938539144,0.352628,37144.0,37142.0,0.72330533]
[1643938539343,0.05,37144.0,37142.0,0.7235401]
[1643938539743,0.402628,37143.0,37142.0,0.7235401]
[1643938540018,0.45232131,37143.0,37142.0,0.7235401]
[1643938540223,0.09969331,37143.0,37142.0,0.72330533]
[1643938540418,0.09969331,37143.0,37142.0,0.72008342]
[1643938541819,0.09969331,37143.0,37142.0,1.14008342]
[1643938542318,0.45232131,37143.0,37142.0,1.14008342]
[1643938542518,0.09969331,37143.0,37142.0,1.14008342]
[1643938542919,0.45232131,37143.0,37142.0,1.14008342]
[1643938543120,0.65817184,37143.0,37142.0,1.14008342]
[1643938543319,0.65817184,37143.0,37142.0,1.13508342]
[1643938543746,0.75817184,37143.0,37142.0,1.13508342]
[1643938544046,0.55232131,37143.0,37142.0,1.13508342]
[1643938544250,1.05232131,37143.0,37142.0,1.13508342]
[1643938544445,2.70232131,37143.0,37142.0,1.13508342]
[1643938544647,2.75232131,37143.0,37142.0,1.13508342]
[1643938544844,1.10232131,37143.0,37142.0,1.13508342]
[1643938545443,2.70232131,37143.0,37142.0,1.13508342]
[1643938546044,2.20232131,37143.0,37142.0,1.13508342]
[1643938546444,0.60155315,37143.0,37142.0,1.13508342]
[1643938546646,0.84647445,37143.0,37142.0,1.13508342]
[1643938546850,0.84647445,37143.0,37142.0,1.13528504]
[1643938549194,0.60155315,37143.0,37142.0,1.13528504]
[1643938549792,0.60155315,37143.0,37142.0,2.03134683]
[1643938549998,0.60155315,37143.0,37142.0,2.08334683]
[1643938549999,0.48332131,37143.0,37142.0,2.08334683]
[1643938550194,0.13069331,37143.0,37142.0,2.03334683]
[1643938550394,0.03069331,37143.0,37142.0,2.03334683]
[1643938551441,0.24106881,37143.0,37142.0,2.03334683]
[1643938552643,0.23805609,37143.0,37142.0,2.03334683]
[1643938552948,0.03069331,37143.0,37142.0,2.43597483]
[1643938555195,0.03069331,37143.0,37142.0,2.43097483]
[1643938555595,0.03069331,37143.0,37142.0,2.38397483]
[1643938555795,0.03069331,37143.0,37142.0,2.03134683]
[1643938555994,0.38332131,37143.0,37142.0,2.03134683]
[1643938556396,0.03069331,37143.0,37142.0,2.38397483]
[1643938556796,0.03069331,37143.0,37142.0,2.43397483]
[1643938557301,0.58069331,37143.0,37142.0,2.43397483]
[1643938557496,0.03069331,37143.0,37142.0,2.08134683]
[1643938557694,0.03069331,37143.0,37142.0,2.38397483]
[1643938561147,0.78069331,37143.0,37142.0,2.38397483]
[1643938561346,1.13332131,37143.0,37142.0,2.03134683]
[1643938561546,0.38332131,37143.0,37142.0,2.03134683]
[1643938562168,2.33332131,37143.0,37142.0,2.03134683]
[1643938562399,1.98069331,37143.0,37142.0,2.38397483]
[1643938562599,1.98069331,37143.0,37142.0,2.03134683]
[1643938562991,0.03069331,37143.0,37142.0,2.03134683]
[1643938563192,0.93069331,37143.0,37142.0,2.03134683]
[1643938563395,1.61966107,37143.0,37142.0,2.03134683]
[1643938563692,1.03069331,37143.0,37142.0,2.03134683]
[1643938565994,1.38332131,37143.0,37142.0,2.03134683]
[1643938566254,0.13069331,37143.0,37142.0,2.38397483]
[1643938566453,0.13069331,37143.0,37142.0,2.03134683]
[1643938566656,0.25145631,37143.0,37142.0,2.38397483]
[1643938566855,0.30145631,37143.0,37142.0,2.03134683]
[1643938567053,1.80145631,37143.0,37142.0,2.03134683]
[1643938567254,2.25408431,37143.0,37142.0,2.03134683]
[1643938567855,1.90145631,37143.0,37142.0,2.03134683]
[1643938568054,2.25408431,37143.0,37142.0,2.03134683]
[1643938568956,2.25126431,37143.0,37142.0,2.03134683]
[1643938569155,1.89863631,37143.0,37142.0,2.03134683]
[1643938569357,2.25126431,37143.0,37142.0,2.03134683]
[1643938569655,0.39863631,37143.0,37142.0,2.03134683]
[1643938569893,0.65126431,37143.0,37142.0,2.03134683]
[1643938570095,0.75126431,37143.0,37142.0,2.03134683]
[1643938571598,0.75126431,37143.0,37139.0,0.001]
[1643938571599,0.352628,37141.0,37139.0,0.001]
[1643938571797,1.65,37141.0,37136.0,0.13475699]
[1643938571995,0.78069331,37137.0,37136.0,0.13475699]
[1643938572400,0.78069331,37137.0,37136.0,0.0013088]
[1643938572599,0.88069331,37137.0,37136.0,0.0013088]
[1643938572800,1.23336731,37137.0,37136.0,0.0013088]
[1643938573002,2.13336731,37137.0,37136.0,0.0013088]
[1643938573199,1.22663079,37137.0,37136.0,0.0013088]
[1643938573404,0.352674,37135.0,37132.0,0.0006176]
[1643938573643,1.5,37133.0,37132.0,0.0006176]
[1643938573845,1.852674,37133.0,37132.0,0.0006176]
[1643938574046,2.006474,37133.0,37132.0,0.0006176]
[1643938574243,2.006474,37133.0,37130.0,1.76e-05]
[1643938574447,2.7564785,37132.0,37130.0,0.0012528]
[1643938574644,1.1,37131.0,37130.0,0.0012528]
[1643938574844,1.452674,37131.0,37130.0,0.0012528]
[1643938575043,1.552674,37131.0,37130.0,0.0012528]
[1643938576449,1.25,37130.0,37128.0,0.0035684]
[1643938576650,1.25,37130.0,37123.0,2.00301429]
[1643938576651,2.417389,37130.0,37123.0,2.00301429]
[1643938576851,1.8464137,37129.0,37123.0,2.0010094]
[1643938577049,0.347424,37128.0,37123.0,2.0010094]
[1643938577249,0.406474,37127.0,37123.0,2.0010094]
[1643938577494,0.35324355,37124.0,37123.0,1.99799511]
[1643938577692,1.35704355,37124.0,37123.0,1.99299511]
[1643938577893,1.80977655,37124.0,37123.0,1.99299511]
[1643938578295,0.85977655,37124.0,37123.0,1.99299511]
[1643938578694,1.1119035,37124.0,37123.0,1.99299511]
[1643938579192,0.85977655,37124.0,37123.0,1.99299511]
[1643938579995,1.40977655,37124.0,37123.0,1.99299511]
[1643938581646,1.106533,37124.0,37123.0,1.99299511]
[1643938581848,0.556533,37124.0,37123.0,1.98799511]
[1643938582150,0.556533,37124.0,37123.0,2.24538966]
[1643938582349,0.556533,37124.0,37123.0,1.98799511]
[1643938584148,0.2038,37124.0,37123.0,1.98799511]
[1643938584349,0.1038,37124.0,37123.0,1.98799511]
[1643938585014,0.6,37124.0,37123.0,1.98799511]
[1643938585207,0.05,37124.0,37123.0,1.98799511]
[1643938585410,0.15,37124.0,37123.0,1.98799511]
[1643938586408,0.05,37124.0,37123.0,1.98799511]
[1643938586808,1.05,37124.0,37123.0,1.98819628]
[1643938587010,1.402733,37124.0,37123.0,1.98819628]
[1643938587210,1.502733,37124.0,37123.0,1.98819628]
[1643938588411,0.502733,37124.0,37123.0,1.98819628]
[1643938588650,0.15,37124.0,37123.0,2.34092928]
[1643938588847,0.05,37124.0,37123.0,2.34092928]
[1643938589048,0.27246596,37124.0,37123.0,2.34092928]
[1643938589851,0.22246596,37124.0,37123.0,2.34092928]
[1643938590050,0.05,37125.0,37123.0,2.33592928]
[1643938590252,0.05,37125.0,37124.0,0.35293417]
[1643938590455,0.1286,37133.0,37124.0,0.63567225]
[1643938590654,1.045,37136.0,37126.0,0.399733]
[1643938590857,0.05,37131.0,37128.0,0.352733]
[1643938591053,0.05,37131.0,37129.0,0.001]
[1643938591454,1.25,37130.0,37128.0,0.00020117]
[1643938591654,0.05,37129.0,37128.0,0.352733]
[1643938591854,0.05,37129.0,37128.0,0.35293417]
[1643938592254,0.05,37129.0,37128.0,0.352733]
[1643938592690,0.24402012,37135.0,37128.0,0.40293417]
[1643938592893,0.24402012,37135.0,37130.0,0.352733]
[1643938593091,0.05,37134.0,37131.0,0.001]
[1643938593290,0.05,37134.0,37129.0,0.00020117]
[1643938593291,0.05,37134.0,37130.0,0.352733]
[1643938593491,0.00075276,37137.0,37134.0,0.21291301]
[1643938593492,0.26367078,37136.0,37134.0,0.21291301]
[1643938593691,0.26514236,37135.0,37133.0,0.001]
[1643938594092,0.21288378,37134.0,37133.0,0.001]
[1643938594292,0.21288378,37134.0,37133.0,0.00020117]
[1643938594293,1.75,37134.0,37133.0,0.00020117]
[1643938594690,1.98506304,37134.0,37132.0,0.067359]
[1643938594889,1.98506304,37134.0,37132.0,0.06856017]
[1643938595093,1.55,37133.0,37132.0,0.06756017]
[1643938595291,1.65,37133.0,37132.0,0.067359]
[1643938595893,1.65,37133.0,37132.0,0.06756017]
[1643938596343,1.65,37133.0,37132.0,0.067359]
[1643938596744,1.65,37133.0,37132.0,0.06756017]
[1643938597143,1.65,37133.0,37132.0,0.067359]
[1643938597543,1.65,37133.0,37132.0,0.06756017]
[1643938597943,1.65,37133.0,37132.0,0.067359]
[1643938598344,1.65,37133.0,37132.0,0.06756017]
[1643938598743,1.65,37133.0,37132.0,0.067359]
[1643938599250,1.65,37133.0,37132.0,0.06756017]
[1643938599643,1.65,37133.0,37132.0,0.067359]
[1643938599896,1.65,37133.0,37132.0,0.06756017]
[1643938600291,1.65,37133.0,37132.0,0.067359]
[1643938600692,1.65,37133.0,37132.0,0.06756017]
[1643938601091,1.65,37133.0,37132.0,0.067359]
[1643938601494,1.65,37133.0,37132.0,0.06756017]
[1643938601693,0.15,37133.0,37132.0,0.06756017]
[1643938601896,0.26771182,37133.0,37132.0,0.067359]
[1643938602094,0.05,37133.0,37132.0,0.067359]
[1643938602292,0.26547477,37133.0,37132.0,0.067359]
[1643938602693,0.71547477,37133.0,37132.0,0.06756017]
[1643938602892,1.21820777,37133.0,37132.0,0.06756017]
[1643938603092,1.21820777,37133.0,37132.0,0.067359]
[1643938603292,0.86547477,37133.0,37132.0,0.067359]
[1643938603493,0.36547477,37133.0,37132.0,0.06756017]
[1643938603740,0.77163359,37133.0,37132.0,0.06756017]
[1643938603942,0.76520749,37133.0,37132.0,0.067359]
[1643938604241,0.71520749,37133.0,37132.0,0.067359]
[1643938604446,0.76520749,37133.0,37132.0,0.067359]
[1643938604842,0.76520749,37133.0,37132.0,0.06756017]
[1643938605242,0.76520749,37133.0,37132.0,0.067359]
[1643938605442,0.36520749,37133.0,37132.0,0.067359]
[1643938605643,0.36520749,37133.0,37132.0,0.06756017]
[1643938606044,0.36520749,37133.0,37132.0,0.067359]
[1643938606446,0.36520749,37133.0,37132.0,0.06756017]
[1643938606846,0.36520749,37133.0,37132.0,0.067359]
[1643938607050,0.26520749,37133.0,37132.0,0.067359]
[1643938607249,0.36520749,37133.0,37132.0,0.06756017]
[1643938607693,0.36520749,37133.0,37132.0,0.79409608]
[1643938608593,0.9,37133.0,37132.0,0.72673708]
[1643938608794,1.252733,37133.0,37132.0,0.46006589]
[1643938608994,0.9,37133.0,37132.0,0.46006589]
[1643938609196,0.9,37133.0,37132.0,0.45986472]
[1643938609599,2.1,37133.0,37132.0,0.45986472]
[1643938609791,2.1,37133.0,37132.0,0.46006589]
[1643938609792,2.452733,37133.0,37132.0,0.46006589]
[1643938610393,2.587492,37133.0,37132.0,0.45986472]
[1643938610595,2.59423629,37133.0,37132.0,0.45986472]
[1643938611250,2.59423629,37133.0,37132.0,0.45486472]
[1643938611654,2.88189792,37133.0,37132.0,0.45486472]
[1643938612455,2.88189792,37133.0,37132.0,0.43636363]
[1643938612654,2.59423629,37133.0,37132.0,0.43636363]
[1643938612853,2.59423629,37133.0,37132.0,0.4365648]
[1643938613254,2.59423629,37133.0,37132.0,0.43636363]
[1643938615397,2.59423629,37133.0,37132.0,0.4365648]
[1643938615696,2.94014458,37133.0,37132.0,0.4365648]
[1643938615896,2.9398303,37133.0,37132.0,0.43636363]
[1643938616397,2.99779596,37133.0,37132.0,0.43636363]
[1643938616597,2.59423629,37133.0,37132.0,0.43636363]
[1643938616797,2.99779596,37133.0,37132.0,0.4365648]
[1643938617400,3.39779596,37133.0,37132.0,0.41488668]
[1643938618198,3.39779596,37133.0,37129.0,0.001]
[1643938618199,1.7,37132.0,37129.0,0.001]
[1643938618401,3.22369167,37130.0,37124.0,0.001]
[1643938618649,2.9907085,37125.0,37124.0,0.001]